Cogmind - Beta 17 @@@ ROGUE MODE // 2026.08.11 @ 21:13:45 Player: 4R-ZE3 Result: Destroyed by D-53 Grenadier with Mini Grenade Launcher Performance ------------- Evolutions (0) 0 Regions Visited (2) 400 Robots Destroyed (9) 45 Value Destroyed (258) 258 Prototype IDs (0) 0 Alien Tech Used (0) 0 Bonus (0) 0 TOTAL SCORE: 703 Bonus ------- None Cogmind --------- Core Integrity 0/250 Matter 290/300 Energy 238/250 System Corruption 0% Temperature Cool (48) Movement Rolling (200) Ox8 Location -10/Mines Parts ------- > --- POWER (1) -------- Ion Engine > --- PROPULSION (2) --- Wheel > --- UTILITY (2) ------ Improved Heat Sink Huge Storage Unit > --- WEAPON (2) ------- Particle Gun > --- INVENTORY (25) --- Light Ion Engine Light Nuclear Core Wheel Compact Wheel Small Storage Unit Large Storage Unit Light Assault Rifle Light Assault Rifle Light Assault Rifle Light Assault Rifle Light Assault Rifle Light Assault Rifle Light Assault Rifle Grenade Launcher Grenade Launcher Peak State ------------ > --- POWER ------------ Ion Engine > --- PROPULSION ------- Wheel > --- UTILITY ---------- Improved Heat Sink Huge Storage Unit > --- WEAPON ----------- Particle Gun Particle Gun > --- INVENTORY -------- Light Ion Engine Light Nuclear Core Wheel Compact Wheel Small Storage Unit Large Storage Unit Light Assault Rifle Light Assault Rifle Light Assault Rifle Light Assault Rifle Light Assault Rifle Light Assault Rifle Light Assault Rifle Grenade Launcher Grenade Launcher [Rating: 11] Favorites ----------- Power Ion Engine Engine Ion Engine Propulsion Light Treads Treads Light Treads Wheel Wheel Utility Signal Interpreter Device Improved Heat Sink Storage Huge Storage Unit Processor Signal Interpreter Weapon Light Assault Rifle Energy Gun Particle Gun Ballistic Gun Light Assault Rifle Build | -11 -10 -10 ------- Run | Yrd Mat Min Slots Evolved . | . . . Power . | . . . Propulsion . | . . . Utility . | . . . Weapon . | . . . Parts Attached 13 | 6 3 4 Power 1 | 1 . . Engine 1 | 1 . . Core . | . . . Reactor . | . . . Propulsion 3 | 2 . 1 Treads 2 | 2 . . Leg . | . . . Wheel 1 | . . 1 Hover . | . . . Flight . | . . . Utility 5 | 1 3 1 Device 1 | . . 1 Storage 3 | 1 2 . Processor 1 | . 1 . Hackware . | . . . Protection . | . . . Artifact . | . . . Weapon 4 | 2 . 2 Energy Gun 2 | . . 2 Energy Cannon . | . . . Ballistic Gun 2 | 2 . . Ballistic Cannon . | . . . Launcher . | . . . Special Weapon . | . . . Impact Weapon . | . . . Slashing Weapon . | . . . Piercing Weapon . | . . . Special Melee Weapon . | . . . Unidentified Prototypes . | . . . Parts Lost 3 | . . 3 Power . | . . . Propulsion 2 | . . 2 Utility . | . . . Weapon 1 | . . 1 Highest Loss Streak 2 | . . 2 To Critical Strikes . | . . . Average Backups 8 | 1 6 13 Power 1 | . 1 2 Propulsion 1 | . 2 1 Utility 1 | . . 2 Weapon 4 | . 2 8 Tool/Special . | . . . Unused Backups 10 | . . 10 Power 1 | . . 1 Propulsion 2 | . . 2 Utility . | . . . Weapon 7 | . . 7 Tool/Special . | . . . Average Slot Usage (%) 99 | . 99 98 Engine 14 | . 14 14 Treads 23 | . 28 15 Wheel 4 | . . 11 Device 3 | . . 10 Storage 14 | . 14 14 Processor 10 | . 13 3 Ballistic Gun 27 | . 28 26 Peak Build Rating 11 | 6 8 11 Average Rating 7 | 4 7 9 On Entrance 4 | . 6 8 Avg Prop Armor Cover (%) 13 | . . 13 Naked Turns . | . . . Heaviest Build 88 | 12 87 88 Greatest Support 40 | 40 40 10 Greatest Overweight (x) 8 | 3 2 8 Average Overweight (x) 2 | . . 8 Largest Inventory Capacity 25 | 8 25 25 Average Capacity 17 | 7 14 25 Most Carried 15 | 3 13 15 Average Carried 8 | 1 6 13 Final Capacity 25 | 8 25 25 Final Carried 15 | 3 13 15 Class Distribution -------------------- 100% | Mutant Dominant Class ---------------- Mutant | -10/Materials Mutant | -10/Mines Resources | -11 -10 -10 ----------- Run | Yrd Mat Min Matter Collected 377 | 202 132 43 Remotely . | . . . Salvage Created 348 | . 253 95 Parts 12 | . 7 5 Haulers Intercepted 2 | . 2 . Recyclers Shooed . | . . . Parts Field Recycled . | . . . Retrieved Matter . | . . . Parts Self-Destructed . | . . . Prevented . | . . . Parts Restored . | . . . Kills | -11 -10 -10 ------- Run | Yrd Mat Min Combat Hostiles Destroyed 6 | . 3 3 Guns 6 | . 3 3 Classes Destroyed 4 | . 3 1 Builder 1 | . 1 . Hauler 2 | . 2 . Grunt 5 | . 3 2 Demolisher 1 | . . 1 Best Kill Streak 3 | . 3 2 Combat Bots Only 3 | . 3 2 Max Kills in Single Turn 1 | . 1 1 Gunslinging . | . . . Exploded . | . . . Melee . | . . . Uniques/NPCs Destroyed . | . . . Combat | -11 -10 -10 -------- Run | Yrd Mat Min Hostile Shots Fired 67 | . 31 36 Missed 15 | . 8 7 Hits 52 | . 23 29 Projectile 52 | . 23 29 AOE 11 | . . 11 Critical Strikes 2 | . 1 1 Damage Taken 924 | . 275 649 Core 265 | . 48 217 Absorbed by Shields . | . . . Core Remaining (%) 100 | 100 . . Volleys Fired 40 | . 22 18 Largest 2 | . 2 2 Hottest 130 | . 40 130 Shots Fired 78 | . 44 34 Gun 78 | . 44 34 Cannon . | . . . Launcher . | . . . Special . | . . . Kinetic 72 | . 44 28 Thermal 6 | . . 6 Explosive . | . . . Electromagnetic . | . . . Robot Hit Streak 8 | . 8 6 Robot Miss Streak 2 | . 1 2 Penetration Max . | . . . Secondary Targets 2 | . . 2 Max Gunslinging Chain 1 | . . 1 Shots Hit Robots 58 | . 35 23 Core Hits 23 | . 15 8 Critical Kills . | . . . Critical Parts Destroyed . | . . . Critical Strikes . | . . . Melee Attacks . | . . . Impact . | . . . Slashing . | . . . Piercing . | . . . Sneak Attacks . | . . . Combat Hostiles . | . . . Follow-up Attacks . | . . . Damage Inflicted 493 | . 286 207 Guns 493 | . 286 207 Cannons . | . . . Explosions . | . . . Melee . | . . . Ramming . | . . . Kinetic 432 | . 286 146 Thermal 61 | . . 61 Explosive . | . . . Electromagnetic . | . . . Impact . | . . . Slashing . | . . . Piercing . | . . . Highest Corruption . | . . . Average Corruption . | . . . Corruption Purged . | . . . Corruption Blocked . | . . . Overload Shots . | . . . Overflow Damage . | . . . Projectiles . | . . . Explosions . | . . . Melee . | . . . Knockbacks . | . . . Impact . | . . . Kinetic . | . . . Secondary . | . . . Self-Inflicted Damage . | . . . Shots . | . . . Rammed . | . . . Targets Rammed . | . . . Kicked . | . . . Crushed . | . . . Highest Temperature 54 | . 41 54 Average Temperature 28 | . 22 34 Received Heat Transfer 351 | . 177 174 Siege Activations . | . . . Martial Activations . | . . . Shielding Activations . | . . . Robots Disrupted . | . . . Combat Hostiles . | . . . Robots Corrupted . | . . . Combat Hostiles . | . . . Parts Fried . | . . . Impact Corruptions . | . . . Robots Melted . | . . . Combat Hostiles . | . . . Parts Melted . | . . . Heat Transferred 148 | . . 148 Parts Sabotaged . | . . . Parts Stolen . | . . . Parts Stripped . | . . . Power Chain Reactions . | . . . Alert | -11 -10 -10 ------- Run | Yrd Mat Min Maximum Alert Level . | . . . Low Security (%) 100 | 100 100 100 Level 1 . | . . . Level 2 . | . . . Level 3 . | . . . Level 4 . | . . . Level 5 . | . . . High Security . | . . . Max Security . | . . . Peak Influence 70 | . 70 31 Initial 1 | . . 1 Average 10 | . 15 4 Influence Increases 181 | . 111 70 Destroy 0b10 Robot/C 120 | . 60 60 Destroy 0b10 Robot/NC 15 | . 15 . Destroy Leader 34 | . 24 10 Successful Hack 12 | . 12 . Influence Decreases 171 | . 106 65 Entered New Map 4 | . . 4 Time Decay 147 | . 106 41 Lost Part 20 | . . 20 Squads Dispatched 1 | . 1 . Investigation 1 | . 1 . Extermination . | . . . Reinforcement . | . . . Assault . | . . . Garrison . | . . . Intercept . | . . . Searches Triggered . | . . . Construction Impeded . | . . . Haulers Reinforced . | . . . Active Scanning Responses . | . . . Cargo Convoy Interrupts . | . . . Stealth | -11 -10 -10 --------- Run | Yrd Mat Min Distress Signals . | . . . Communications Jammed . | . . . Distress Signals . | . . . Times Spotted 10 | . 5 5 Peak Tracking Total 13 | . 2 13 Tactical Retreats . | . . . Traps | -11 -10 -10 ------- Run | Yrd Mat Min Traps Triggered 1 | . 1 . Indirectly . | . . . Trap Hack Attempts . | . . . Triggered . | . . . Disarmed . | . . . Reprogrammed . | . . . Reused . | . . . Traps Extracted . | . . . Installed . | . . . Triggered . | . . . Machines | -11 -10 -10 ---------- Run | Yrd Mat Min Machines Disabled . | . . . Max in Single Turn . | . . . Machines Repaired . | . . . Machines Dismantled . | . . . Machines Sabotaged . | . . . Overloaded Fab Kills . | . . . Hacking | -11 -10 -10 --------- Run | Yrd Mat Min Machines Accessed 4 | . 4 . Terminals 4 | . 4 . Fabricators . | . . . Repair Stations . | . . . Recycling Units . | . . . Scanalyzers . | . . . Garrison Access . | . . . Total Hacks 10 | . 10 . Successful 4 | . 4 . Failed 5 | . 5 . Catastrophic . | . . . Database Lockouts 1 | . 1 . Manual 10 | . 10 . Terminals 10 | . 10 . Fabricators . | . . . Repair Stations . | . . . Recycling Units . | . . . Scanalyzers . | . . . Garrison Access . | . . . Terminal Hacks 1 | . 1 . Robot Analysis 1 | . 1 . Fabricator Hacks . | . . . Repair Station Hacks . | . . . Recycling Unit Hacks . | . . . Scanalyzer . | . . . Garrison Access Hacks . | . . . Unauthorized Hacks 3 | . 3 . Terminals 3 | . 3 . Botnet 3 | . 3 . Fabricators . | . . . Repair Stations . | . . . Recycling Units . | . . . Scanalyzers . | . . . Garrison Access . | . . . Data Cores Recovered . | . . . Used . | . . . Hacking Detections 4 | . 4 . Full Trace Events . | . . . Feedback Events . | . . . Feedback Blocked . | . . . Robot Schematics Acquired . | . . . Robots Built . | . . . Authchips . | . . . Time . | . . . Total Robot Build Rating . | . . . Part Schematics Acquired . | . . . Parts Built . | . . . Authchips . | . . . Time . | . . . Total Part Build Rating . | . . . Part Studies Acquired . | . . . Parts Repaired . | . . . Time . | . . . Parts Recycled . | . . . Recycled Matter . | . . . Retrieved Matter . | . . . Retrieved Components . | . . . Parts Scanalyzed . | . . . Part Schematics Acquired . | . . . Parts Damaged . | . . . Bothacking | -11 -10 -10 ------------ Run | Yrd Mat Min Used RIF Installer . | . . . Robots Hacked . | . . . Non-combat . | . . . Combat . | . . . Robot Hacks Applied . | . . . Relay Couplers Released . | . . . Fabnet Peak Effective % . | . . . Robots Rewired . | . . . Allies Hacked . | . . . Hacks Repelled . | . . . Allies | -11 -10 -10 -------- Run | Yrd Mat Min Total Allies . | . . . Largest Group . | . . . Highest-Rated Group . | . . . Highest-Rated Ally . | . . . Total Orders . | . . . Ally Attacks . | . . . Total Damage . | . . . Kills . | . . . Allies Corrupted . | . . . Allies Melted . | . . . Intel | -11 -10 -10 ------- Run | Yrd Mat Min Active Infowar (turns) . | . . . Robot Analysis Total 1 | . 1 . Derelict Logs Recovered . | . . . Drone Launches . | . . . Drone Recoveries . | . . . Exploration | -11 -10 -10 ------------- Run | Yrd Mat Min Turns Passed 675 | 64 396 215 Spaces Moved 281 | 34 167 80 Core 10 | 10 . . Treads 191 | 24 167 . Legs . | . . . Wheels 80 | . . 80 Hover . | . . . Flight . | . . . Fastest Speed 50 | 50 160 200 Average Speed 189 | 157 190 200 Slowest Speed 320 | 200 320 200 Overloaded Moves . | . . . Propulsion Burnouts . | . . . Robots Hopped . | . . . Potential Cave-ins . | . . . Cave-ins Triggered . | . . . Exploration Rate (%) 17 | 3 30 18 Regions Visited 2 Branch Regions 1 Pre-discovered Areas . | . . . Known Exits Taken 1 | . 1 . Unknown Exits Taken 1 | 1 . . Scrap Searched 1 | . . 1 Spaces Dug . | . . . Terrain Destroyed . | . . . Melee . | . . . Projectile . | . . . AOE . | . . . Terrain Rammed . | . . . Walls Destroyed . | . . . Machines Disabled . | . . . Actions | -11 -10 -10 --------- Run | Yrd Mat Min Total 358 | 42 210 106 Wait 11 | . 11 . Move 279 | 33 166 80 Hop . | . . . Pick Up 14 | 3 8 3 Fast Attach 8 | 6 1 1 Attach 1 | . . 1 Detach . | . . . Swap 4 | . 2 2 Drop 1 | . . 1 Fire 40 | . 22 18 Melee . | . . . Ram . | . . . Kick . | . . . Crush . | . . . Escape Stasis . | . . . Rewire . | . . . Trap . | . . . Miscellaneous . | . . . Route ------- -11/Scrapyard -10/Materials -10/Mines History --------- Turn | Location | Event 19 | -11/Scrapyard | Discovered new exit (range 15) 65 | -11/Scrapyard | Entered Materials 249 | -10/Materials | Central database locked down 311 | -10/Materials | Build established: Mutant 324 | -10/Materials | Discovered new exit (range 15) 458 | -10/Materials | Identified exit to Mines 461 | -10/Materials | Entered Mines 494 | -10/Mines | Core integrity fell below 50% 649 | -10/Mines | Assembled infested the area 671 | -10/Mines | Core integrity fell below 20% 676 | -10/Mines | Destroyed by D-53 Grenadier with Mini Grenade Launcher Last Messages --------------- 00582_ Found Com. Wheel. 00582_ Found Grenade Launcher. 00582_ Found 39 Matter. 00586_ Acquired Grenade Launcher. 00599_ Acquired Com. Wheel. 00649_ ALERT: Infestation in the mines, dispatching Demolisher response squad. 00664_ C-45 Heavy ARC bursts open, deploying its payload. 00664_ D-53 Grenadier unfolds itself. 00664_ Lgt. Treads destroyed. 00667_ The unstable cave ceiling collapses. 00670_ D-53 Grenadier destroyed. 00670_ Switching to secondary target: D-53 Grenadier. 00670_ Particle Gun destroyed. 00672_ The unstable cave ceiling collapses. 00674_ T-07 Excavator destroyed. 00675_ The unstable cave ceiling collapses. 00676_ HV Slug penetrates Wall. Map ----- +----------------------------------------------------+ | ??????????# #????######??????????????????????? | | ?????????## ##??# #??????????????????????? | | ????????## #??# #??????????????????????? | | ????????# #??# """ #??????????????????????? | | ???????## ### ##### """ #??????????????????????? | | ??????## ##??#### """ #??????????????????????? | | ?????## #??????# # """ #??????????????????????? | | ?????# ##?????# # #??????????????????????? | | ?????# ##????# # #??????????????????????? | | ?????# % % ##???# #######??????????????????????? | | ?????# ###?#% #????????????????????????????? | | ?????## ###]!#????????????????????????????? | | ??????### ## #????????????????????????????? | | ????????#### ## #????????????????????????????? | | ???????????## #######??????????????????????? | | ????????????# ## #??????????????????????? | | ????????????## ## ##### #??????????????????????? | | ?????????????# ## #?### #??????????????????????? | | ????????????? ## ### ##?????????????????????? | | ????????????# ### ## #?????????????????????? | | ???????????? #?# # ##???#????????????????? | | ??????????? ##?# ### #????????????????? | | ?????????? ##??## #????????????????? | | ?????????? #???## = d #????????????????? | | ????????? ????# ###????????????????? | | ???????? ????# @ ##??????????????????? | | ???????? ????# #??????????????????? | | ??????????????## # #????????????????? | | ???????????????## #????????????????? | | ????????????????## #????????????????? | | ?????????????????# # ### #???????????????? | | ?????????????????# ######?? ??????????????? | | ?????????????????# ##????????? ?????????????? | | ?????????????????# ???????????? ???????????? | | ?????????????????# ?????????????? ???????????? | | ?????????????????#???????????????? ???????????? | | ??????????????????????????????????? ????????????? | | ?????????????????????????????????????????????????? | | ?????????????????????????????????????????????????? | | ?????????????????????????????????????????????????? | | ?????????????????????????????????????????????????? | | ?????????????????????????????????????????????????? | | ?????????????????????????????????????????????????? | | ?????????????????????????????????????????????????? | | ?????????????????????????????????????????????????? | | ?????????????????????????????????????????????????? | | ?????????????????????????????????????????????????? | | ?????????????????????????????????????????????????? | | ?????????????????????????????????????????????????? | | ?????????????????????????????????????????????????? | +----------------------------------------------------+ Best States ------------- Heat Dissipation 39 Energy Generation 10 Energy Capacity 250 Matter Stores 300 Matter Capacity 300 Sight Range 16 Terrain Scan Density 10 Evasion (%) 40 Recoil Reduction 2 Item Schematics ----------------- None Robot Schematics ------------------ None Fabricated ------------ Nothing Repaired ---------- Nothing Studied --------- None Alien Tech Used ----------------- None Achievements -------------- None Challenges ------------ None Game ------ Seed MyomerDrainedDevice Manual? 0 Play Time 00:04:32 Cumulative 225.4 hours Start 2026.08.11 @ 21:10:16 End 2026.08.11 @ 21:13:45 Sessions 1 Manual Loads 0 Difficulty Rogue Special Mode None Game No. 227 Rogue 173 Adventurer 54 Explorer 0 Win Type - Total 9 Types 5/0/1/1/0/0/0/1/0/1 Lore% 74 Gallery% 62 Achievement% 58 Wizard Run 0 Options --------- Layout 1 ASCII 0 Keyboard 0 Movement Mouse Keybinds 1 Fullscreen 2 Font 32/Tamsyn Map View 50x35 Zoom Use 0% Tactical HUD 1 Map Filters NONE Filters NONE Steam 1 RUN: 4482fe62-2822-4b4a-85d1-00ae22512f07